bitfinex/quotes_ETHUSD_20240828
["timestamp","ask_amount","ask_price","bid_price","bid_amount"]
[1724837991494,22.2056,2485.0,2484.7,4.02458]
[1724837991615,24.828568,2485.0,2484.7,4.02458]
[1724837991816,24.828568,2485.0,2484.8,0.08929887]
[1724837992211,22.2056,2485.0,2484.9,4.0243]
[1724837992632,4.04628419,2485.6,2485.1,4.02386]
[1724837992633,19.78,2485.4,2485.1,4.02386]
[1724837992835,19.78,2485.4,2485.3,8.0473]
[1724837993149,23.1749,2485.8,2485.4,4.02342]
[1724837993622,3.3949,2485.8,2485.5,0.08880232]
[1724837993975,6.624129,2485.8,2485.5,4.11200232]
[1724837995044,6.624129,2485.8,2485.5,0.08880232]
[1724837997370,10.646979,2485.8,2485.5,0.08880232]
[1724837997865,5.9994599,2485.7,2485.5,0.08880232]
[1724837998075,3.3949,2485.8,2485.5,4.13508651]
[1724837998229,1.0,2485.8,2485.6,4.02308]
[1724837998423,1.0,2485.8,2485.6,8.13346053]
[1724837998863,1.0,2485.8,2485.6,4.11037053]
[1724837999176,1.0,2485.8,2485.6,8.13344053]
[1724837999666,1.0,2485.8,2485.7,4.02301]
[1724838000065,1.0,2485.8,2485.7,12.25998603]
[1724838000260,1.0,2485.8,2485.7,15.25998603]
[1724838000261,0.16001378,2485.8,2485.7,15.25998603]
[1724838000472,0.16001378,2485.8,2485.7,17.70958603]
[1724838000645,0.01047579,2485.8,2485.7,21.73259603]
[1724838001180,0.01047579,2485.8,2485.7,11.13324286]
[1724838002253,0.01047579,2485.8,2485.7,13.52264286]
[1724838002863,0.01047579,2485.8,2485.7,17.54565286]
[1724838003075,0.01047579,2485.8,2485.7,18.09565286]
[1724838008163,0.01047579,2485.8,2485.7,7.11023286]
[1724838008644,0.01047579,2485.8,2485.7,11.13324286]
[1724838010079,0.01047579,2485.8,2485.7,13.60134286]
[1724838010493,0.01047579,2485.8,2485.7,17.62435286]
[1724838010653,2.394,2486.8,2486.5,4.02162]
[1724838011189,2.394,2486.8,2486.6,0.08565558]
[1724838011495,2.394,2486.8,2486.6,4.10720558]
[1724838011789,2.394,2486.8,2486.7,0.08546395]
[1724838012153,2.394,2486.8,2486.4,8.04353]
[1724838012355,2.394,2486.8,2486.5,0.08546395]
[1724838012664,2.394,2486.8,2486.5,4.10717395]
[1724838013408,2.394,2486.8,2486.5,0.08546395]
[1724838014182,2.394,2486.8,2486.5,8.12884395]
[1724838014416,2.394,2486.8,2486.5,4.10715395]
[1724838014904,2.394,2486.8,2486.5,8.12878395]
[1724838015109,2.394,2486.8,2486.5,8.12870395]
[1724838015795,2.394,2486.8,2486.6,4.02155]
[1724838016166,2.394,2486.8,2486.7,0.0852949]
[1724838016366,2.394,2486.8,2486.5,4.02159]
[1724838016578,2.394,2486.8,2486.6,0.0852949]
[1724838016985,2.394,2486.8,2486.5,4.02171]
[1724838017192,2.394,2486.8,2486.7,0.0852949]
[1724838017400,2.394,2486.8,2486.5,4.02171]
[1724838017602,2.394,2486.8,2486.7,0.0852949]
[1724838017809,2.394,2486.8,2486.5,4.02164]
[1724838017979,2.394,2486.8,2486.7,0.0852949]
[1724838018311,2.394,2486.8,2486.5,4.02164]
[1724838018510,2.394,2486.8,2486.7,0.08495679]
[1724838018712,2.394,2486.8,2486.5,4.02163]
[1724838018896,0.011,2487.0,2486.9,4.02107]
[1724838019286,0.011,2487.0,2486.9,11.6256383]
[1724838020209,0.011,2487.0,2486.9,3.5834983]
[1724838020367,0.011,2487.0,2486.9,0.08493425]
[1724838020576,0.00072094,2487.0,2486.9,0.08493425]
[1724838020897,0.00072094,2487.0,2486.9,4.10600425]
[1724838021082,0.00072094,2487.0,2486.9,5.50546182]
[1724838021282,0.00072094,2487.0,2486.9,4.10600425]
[1724838022515,0.00072094,2487.0,2486.9,11.62560482]
[1724838022679,0.00072094,2487.0,2486.9,15.45595349]
[1724838022879,0.00072094,2487.0,2486.9,27.15216628]
[1724838023190,0.00072094,2487.0,2486.9,32.43919212]
[1724838023516,0.00072094,2487.0,2486.9,34.09735762]
[1724838024296,0.00072094,2487.0,2486.9,29.66130401]
[1724838024501,0.00072094,2487.0,2486.9,30.07628762]
[1724838024713,0.00072094,2487.0,2486.9,32.43919212]
[1724838024926,0.1233923,2487.4,2487.3,12.06126]
[1724838025085,0.1233923,2487.4,2487.3,18.55904375]
[1724838025312,0.1233923,2487.4,2487.3,18.64297539]
[1724838025831,0.1233923,2487.4,2487.3,14.62255539]
[1724838025989,0.1233923,2487.4,2487.3,12.52388514]
[1724838026185,2.6162923,2487.4,2487.3,7.10435164]
[1724838027510,0.1233923,2487.4,2487.3,7.10435164]
[1724838028223,0.1233923,2487.4,2487.3,11.12477164]
[1724838029228,2.4843923,2487.4,2487.3,11.12477164]
[1724838029793,2.4843923,2487.4,2487.3,3.08393164]
[1724838030322,15.22163772,2487.4,2487.3,0.08393164]
[1724838030628,15.22163772,2487.4,2486.5,4.02159]
[1724838030629,4.02123,2486.8,2486.3,4.02193]
[1724838030814,2.2704,2486.9,2486.4,4.02176]
[1724838031020,2.2704,2486.9,2486.5,4.02163]
[1724838031237,2.2704,2486.9,2486.5,8.04326]
[1724838031566,2.2704,2486.9,2486.2,4.04628419]
[1724838031708,5.09463,2487.1,2486.8,8.06748419]
[1724838032033,19.78,2487.2,2487.0,4.02089]
[1724838032197,19.78,2487.2,2487.0,4.02079]
[1724838032850,19.78,2487.2,2487.1,0.12310702]
[1724838033240,19.78,2487.2,2487.1,8.24499859]
[1724838033531,19.78,2487.2,2487.1,11.16458702]
[1724838034501,0.1233923,2487.4,2487.3,4.02042]
[1724838034852,0.1233923,2487.4,2487.3,8.24403305]
[1724838035039,0.1233923,2487.4,2487.3,11.24403305]
[1724838035206,0.1233923,2487.4,2487.3,11.16363167]
[1724838035527,0.1233923,2487.4,2487.3,15.73405167]
[1724838036441,0.1233923,2487.4,2487.3,11.16363167]
[1724838038477,0.1233923,2487.4,2487.3,15.73405167]
[1724838038877,0.1233923,2487.4,2487.3,17.06265167]
[1724838040265,0.00809069,2487.4,2487.3,17.06265167]
[1724838040754,0.0005305,2487.4,2487.3,17.06265167]
[1724838041779,0.0005305,2487.4,2487.3,17.46585167]
[1724838042153,0.0005305,2487.4,2487.3,21.48627167]
[1724838042351,0.0005305,2487.4,2487.3,25.50669167]
[1724838042577,7.42623,2488.5,2488.4,4.01864]
[1724838042755,2.3316,2488.5,2488.4,4.01864]
[1724838042954,2.3316,2488.5,2488.4,4.1403396]
[1724838043854,7.58253,2489.0,2488.4,4.1402296]
[1724838044053,13.45438501,2489.0,2488.5,4.01837]
[1724838044292,4.01721,2489.3,2488.7,4.01801]
[1724838044603,6.50525,2489.2,2488.8,0.12099066]
[1724838044787,10.52273,2489.2,2488.8,0.12099066]
[1724838045114,8.066986,2489.2,2488.6,3.0]
[1724838045408,8.066986,2489.2,2488.7,4.01815]
[1724838045615,4.01753,2489.1,2488.7,0.12075443]
[1724838045816,1.2084516,2489.1,2488.7,4.13884443]
[1724838046376,1.2084516,2489.1,2488.7,0.12075443]
[1724838046699,4.01755,2489.1,2488.7,0.12075443]
[1724838047679,4.0177,2489.0,2488.7,0.12075443]
[1724838048085,4.018,2488.8,2488.7,0.12075443]
[1724838048285,10.4842,2488.8,2488.7,0.12075443]
[1724838048594,6.46668,2488.5,2488.0,4.01917]
[1724838048790,6.46668,2488.5,2488.1,0.12066445]
[1724838049197,2.4482,2488.5,2488.1,4.13976445]
[1724838049819,2.4482,2488.5,2488.1,0.12066445]
[1724838050024,2.4482,2488.5,2488.1,4.13976445]
[1724838050194,6.46671,2488.5,2488.1,0.12066445]
[1724838050384,6.46671,2488.5,2488.1,3.12066445]
[1724838050985,11.533779,2488.5,2488.1,3.12066445]
[1724838051197,7.515209,2488.5,2488.1,3.12066445]
[1724838051600,3.496699,2488.5,2488.1,7.13976445]
[1724838051795,2.4482,2488.5,2488.1,3.12066445]
[1724838052012,4.01865,2488.4,2488.1,3.12066445]
[1724838052414,2.4482,2488.5,2488.1,3.12066445]
[1724838052601,6.4667,2488.5,2488.1,3.12066445]
[1724838052800,8.66304264,2488.5,2488.1,3.12066445]
[1724838052988,4.01866,2488.4,2488.1,3.12066445]
[1724838053322,2.4482,2488.5,2488.1,0.12066445]
[1724838053631,2.4482,2488.5,2488.1,4.13965445]
[1724838056127,2.4482,2488.5,2488.1,8.15869445]
[1724838056537,4.01839,2488.6,2488.1,8.15869445]
[1724838056704,19.78,2488.7,2488.5,4.01846]
[1724838056905,2.4042,2488.9,2488.5,8.0368]
[1724838057100,2.4042,2488.9,2488.7,4.01813]
[1724838057319,2.4042,2489.1,2488.9,4.01782]
[1724838057520,2.4688,2489.4,2489.0,4.01767]
[1724838057827,6.887555,2489.4,2489.0,0.12034916]
[1724838058005,2.870515,2489.4,2489.0,4.13793916]
[1724838059088,8.18596649,2489.9,2489.2,4.01733]
[1724838059089,2.4641,2489.7,2489.2,4.01733]
[1724838059329,2.4641,2489.7,2489.5,4.01678]
[1724838059628,0.1233923,2489.9,2489.2,4.01724]
[1724838059830,0.1233923,2489.9,2489.6,0.11941567]
[1724838059831,2.4641,2489.8,2489.6,0.11941567]
[1724838060024,2.4641,2489.8,2489.4,4.01693]
[1724838060224,2.4641,2489.8,2489.7,0.11941567]
[1724838060462,2.4641,2489.8,2489.5,0.08032837]
[1724838060635,6.48052,2489.8,2489.7,0.11941567]
[1724838060842,4.01657,2489.7,2489.3,3.0]
[1724838061067,6.48052,2489.8,2489.7,0.11941567]
[1724838061235,4.01656,2489.7,2489.3,3.0]
[1724838062262,6.48051,2489.8,2489.3,7.01715]
[1724838062474,6.48051,2489.8,2489.3,3.0]
[1724838062674,6.34242,2489.3,2488.6,4.01823]
[1724838062994,4.01786,2488.9,2488.4,4.01849]
[1724838063148,4.01786,2488.9,2488.2,4.01887]
[1724838063149,4.01818,2488.7,2488.2,4.01887]
[1724838063478,4.01786,2488.9,2488.2,4.01886]
[1724838063640,4.01817,2488.7,2488.2,4.01886]
[1724838063822,4.25041,2488.9,2488.3,4.01879]
[1724838064341,8.26834,2488.9,2488.3,4.01879]
[1724838064873,4.25041,2488.9,2488.2,4.01886]
[1724838065082,4.01819,2488.7,2488.4,0.11802834]
[1724838065367,4.01819,2488.7,2488.2,4.01886]
[1724838065541,0.657551,2488.8,2488.2,4.01886]
[1724838065744,8.26841,2488.9,2488.3,4.01878]
[1724838065943,8.26841,2488.9,2488.3,4.13719066]
[1724838066150,4.018,2488.8,2488.3,0.11841066]
[1724838066361,4.01818,2488.7,2488.3,0.11841066]
[1724838066539,4.01818,2488.7,2488.0,5.05160856]
[1724838066540,6.36401,2488.6,2488.0,5.05160856]
[1724838066754,6.36401,2488.6,2488.0,8.44157]
[1724838067091,6.36401,2488.6,2488.1,0.11843315]
[1724838067390,6.36401,2488.6,2488.1,0.19880253]
[1724838067391,2.3456,2488.6,2488.1,0.19880253]
[1724838067598,2.3456,2488.6,2488.2,8.03781]
[1724838067888,7.422973,2488.8,2488.3,0.11848938]
[1724838068292,7.422973,2488.8,2488.2,8.03774]
[1724838068596,7.422973,2488.8,2488.2,4.01886]
[1724838068795,7.422973,2488.8,2488.3,0.11848938]
[1724838069000,7.422973,2488.8,2488.2,4.01886]
[1724838069001,2.3456,2488.8,2488.2,4.04628419]
[1724838069185,2.3456,2488.8,2488.3,7.21756371]
[1724838069359,2.3456,2488.8,2488.4,8.0371]
[1724838069557,4.01795,2488.9,2488.3,3.19885371]
[1724838069558,2.2852,2489.1,2488.5,0.08036433]
[1724838069773,5.09463,2489.2,2488.7,4.01812]
[1724838070059,26.08249,2489.3,2488.8,0.11860186]
[1724838070401,26.08239,2489.3,2488.8,0.08035106]
[1724838070693,26.08239,2489.3,2488.9,0.11860186]
[1724838070897,30.09732556,2489.3,2488.9,0.11860186]
[1724838071253,30.09732556,2489.3,2488.7,8.03607]
[1724838071450,30.09732556,2489.3,2489.0,0.11860186]
[1724838071694,30.09732556,2489.3,2488.8,4.09826116]
[1724838071869,26.08239,2489.3,2489.1,0.11860186]
[1724838072071,26.08239,2489.3,2488.8,4.09826116]
[1724838072072,6.30218,2489.5,2489.0,4.01754]
[1724838072299,4.01666,2489.7,2488.8,4.04628419]
[1724838072590,4.01673,2489.6,2488.9,8.03545]
[1724838072756,2.2852,2489.5,2489.0,0.11825322]
[1724838072954,2.686873,2489.5,2488.7,9.28533]
[1724838073291,4.01736,2489.2,2488.8,0.11825322]
[1724838073491,4.01715,2489.4,2488.8,0.19860046]
[1724838073698,4.01713,2489.4,2488.9,4.01783]
[1724838073906,4.01712,2489.4,2488.9,4.13608322]
[1724838074192,4.01712,2489.4,2488.9,0.11825322]
[1724838074193,4.01711,2489.4,2488.9,0.11825322]
[1724838074399,4.01711,2489.4,2488.9,3.11825322]
[1724838074801,4.01728,2489.3,2488.9,3.11825322]
[1724838075164,4.0174,2489.2,2488.9,3.11825322]
[1724838075389,4.01767,2489.0,2488.9,0.11825322]
[1724838075593,4.01767,2489.0,2488.6,3.0]
[1724838075799,4.01767,2489.0,2488.4,2.4596]
[1724838075800,4.01807,2488.8,2488.7,0.11866915]
[1724838075962,4.01807,2488.8,2488.2,0.62918918]
[1724838075963,4.01824,2488.7,2488.2,0.62918918]
[1724838076178,4.01824,2488.7,2488.3,0.11866915]
[1724838076379,4.01858,2488.5,2488.0,4.42249]
[1724838076576,4.01827,2488.7,2488.1,4.09947223]
[1724838076796,4.01826,2488.7,2488.2,4.01896]
[1724838077106,2.326,2489.0,2488.4,4.01856]
[1724838077273,4.0181,2488.8,2488.3,4.13741915]
[1724838077473,4.01844,2488.6,2488.0,4.42238]
[1724838077695,4.01848,2488.5,2488.4,0.11866915]
[1724838077879,2.2732,2488.5,2487.9,2.3355]
[1724838078081,0.2326,2489.0,2488.4,0.11866915]
[1724838078082,4.01824,2488.7,2488.4,0.11866915]
[1724838078305,4.01824,2488.7,2488.3,0.08036543]
[1724838078465,4.01832,2488.6,2488.5,0.11898405]
[1724838078671,4.01832,2488.6,2488.0,0.4032]
[1724838078672,4.01832,2488.6,2488.0,4.42242]
[1724838078887,4.01832,2488.6,2488.5,0.11898405]
[1724838079096,4.01832,2488.6,2488.1,4.09948157]
[1724838079296,4.01832,2488.6,2488.5,0.11905153]
[1724838079500,4.01848,2488.5,2488.0,4.4224]
[1724838079815,4.01896,2488.2,2488.1,3.11905153]
[1724838079965,4.01896,2488.2,2488.1,0.11905153]
[1724838079966,8.03792,2488.2,2488.1,0.11905153]
[1724838080165,4.01896,2488.2,2487.7,4.01975]
[1724838080376,4.01896,2488.2,2487.8,0.11907403]
[1724838080603,4.01913,2488.1,2487.8,0.11907403]
[1724838080778,4.01913,2488.1,2487.7,0.08038101]
[1724838080980,4.01913,2488.1,2487.9,0.11907403]
[1724838081203,4.01913,2488.1,2488.0,0.11907403]
[1724838081582,4.01913,2488.1,2487.7,3.08038101]
[1724838081807,4.01913,2488.1,2487.7,3.0]
[1724838081808,4.01947,2487.9,2487.7,3.0]
[1724838082329,4.01947,2487.9,2487.8,0.11907403]
[1724838082634,4.01969,2487.8,2487.6,1.00691825]
[1724838082845,4.01974,2487.8,2487.6,1.00691825]
[1724838083133,4.01947,2487.9,2487.6,1.00691825]
[1724838083641,19.78,2488.2,2487.6,5.10716417]
[1724838083842,19.78,2488.2,2487.7,4.01969]
[1724838084046,19.78,2488.2,2487.8,4.01956]
[1724838084194,4.01859,2488.5,2487.9,4.01932]
[1724838084395,6.29974,2488.6,2488.1,4.01909]
[1724838084599,6.29974,2488.6,2488.0,0.08037564]
[1724838084600,4.58412992,2488.5,2488.0,0.08037564]
[1724838084901,4.58412992,2488.5,2488.0,4.09963564]
[1724838085331,0.56562992,2488.5,2488.1,4.0191]
[1724838085552,6.29975,2488.6,2488.1,4.0191]
[1724838085833,4.01835,2488.6,2488.1,4.0191]
[1724838086624,4.01849,2488.5,2488.0,4.09965564]
[1724838088049,4.0188,2488.4,2488.0,0.08037564]
[1724838088242,4.01849,2488.5,2487.7,0.82858082]
[1724838088243,2.4866,2488.5,2487.7,0.82858082]
[1724838088442,4.01937,2488.0,2487.5,10.27326082]
[1724838088737,4.0197,2487.8,2487.3,7.27351082]
[1724838088900,8.03941,2487.8,2487.3,6.44493]
[1724838089104,4.01978,2487.7,2487.3,2.4246]
[1724838089366,4.01979,2487.7,2487.2,4.42375]
[1724838090580,4.0197,2487.8,2487.3,7.10077633]
[1724838091190,4.0197,2487.8,2487.3,7.10072633]
[1724838091876,4.0197,2487.8,2487.3,7.02033]
[1724838092663,4.0197,2487.8,2487.3,3.0]
[1724838092843,4.0197,2487.8,2487.2,3.4032]
[1724838092844,4.01997,2487.6,2487.2,3.4032]
[1724838093892,4.5020544,2487.8,2487.2,3.4032]
[1724838093893,4.01977,2487.7,2487.2,3.4032]
[1724838094078,4.01994,2487.6,2487.2,3.4032]
[1724838094975,6.78229267,2487.6,2486.9,7.33744082]
[1724838095164,4.02028,2487.4,2487.3,0.12015375]
[1724838095363,5.10055927,2487.4,2486.9,4.02106]
[1724838095702,5.10055927,2487.4,2487.0,0.12015375]
[1724838095703,4.02028,2487.4,2487.0,0.12015375]
[1724838096365,4.0202,2487.5,2487.0,4.14105375]
[1724838096570,6.78241267,2487.6,2487.0,0.12015375]
[1724838096571,6.35236,2487.6,2487.0,0.12015375]
[1724838096888,4.02028,2487.4,2487.0,0.20056159]
[1724838097871,8.04066,2487.4,2487.0,0.12015375]
[1724838098073,22.2571,2488.3,2487.5,4.02001]
[1724838098272,4.01913,2488.1,2487.6,4.10030672]
[1724838098588,4.01941,2488.0,2487.6,0.12121165]
[1724838098900,4.01947,2487.9,2487.3,5.261]
[1724838099098,4.01994,2487.6,2487.0,6.50378]
[1724838099287,4.01994,2487.6,2487.4,0.12121165]
[1724838099606,2.3489,2487.4,2487.0,4.02078]
[1724838099775,6.36916,2487.4,2486.8,4.02112]
[1724838100115,19.78,2487.7,2487.1,4.02073]
[1724838100116,26.14883,2487.7,2487.1,4.02073]
[1724838100265,4.0201,2487.5,2486.9,4.02091]
[1724838100471,4.02033,2487.4,2486.9,4.02091]
[1724838101171,4.0201,2487.5,2486.9,8.04188]
[1724838101373,4.0201,2487.5,2487.0,4.02086]
[1724838102997,4.02043,2487.3,2486.9,4.02091]
[1724838103200,4.02043,2487.3,2486.8,4.02122]
[1724838103512,4.02043,2487.3,2486.9,3.0]
[1724838103513,6.39753,2487.3,2486.9,3.0]
[1724838104741,4.02022,2487.5,2486.9,7.02104]
[1724838104940,22.00217414,2487.7,2486.9,7.02104]
[1724838104941,23.79987,2487.7,2487.2,4.02053]
[1724838105143,19.78,2487.7,2487.3,4.10070039]
[1724838105525,4.01963,2487.8,2487.3,4.10070039]
[1724838105727,4.01963,2487.8,2487.2,4.0205]
[1724838105945,4.02006,2487.6,2487.1,4.02066]
[1724838106299,6.46638,2487.4,2486.9,3.0]
[1724838106600,4.02054,2487.3,2486.9,3.0]
[1724838106839,4.02061,2487.2,2486.7,4.02136]
[1724838107151,4.02061,2487.2,2486.6,8.44607]
[1724838107304,4.02061,2487.2,2486.8,4.02123]
[1724838107645,4.02042,2487.3,2486.8,4.02123]
[1724838107955,2.446,2487.4,2487.0,4.02089]
[1724838108823,9.11469,2487.6,2487.0,4.02082]
[1724838109102,4.02018,2487.5,2487.0,4.02082]
[1724838109297,15.49379316,2487.6,2487.0,8.04157]
[1724838109539,4.0201,2487.5,2487.0,4.02075]
[1724838109745,3.75564332,2487.5,2487.0,3.36792921]
[1724838110040,3.75564332,2487.5,2487.1,4.14354004]
[1724838110246,7.77575332,2487.5,2487.1,0.12281004]
[1724838112015,2.3398,2487.3,2487.1,0.12281004]
[1724838112219,4.02058,2487.2,2487.1,0.12281004]
[1724838112731,4.02076,2487.1,2486.6,4.02155]
[1724838112947,4.49990383,2487.1,2486.7,3.0]
[1724838113427,4.02111,2486.9,2486.4,4.02174]
[1724838113636,2.4757,2486.9,2486.5,7.02162]
[1724838113828,10.51712,2487.2,2486.6,4.02153]
[1724838114034,10.51712,2487.2,2486.6,8.04299]
[1724838114347,11.76123676,2487.2,2486.7,4.02139]
[1724838114515,1.92494765,2487.4,2486.8,4.10164428]
[1724838114516,8.30491765,2487.4,2486.8,4.10164428]
[1724838114703,4.02042,2487.3,2486.8,8.12277428]
[1724838114905,1.2060611,2487.3,2486.8,4.10155428]
[1724838115107,9.11459,2487.6,2487.0,4.02079]
[1724838115304,4.02012,2487.5,2487.1,4.02066]
[1724838116344,4.02012,2487.5,2486.9,8.04196]
[1724838116499,4.02031,2487.4,2486.9,4.02092]
[1724838116703,7.60173416,2487.4,2486.9,4.02092]
[1724838116942,4.02042,2487.3,2486.9,4.02092]
[1724838117246,4.02073,2487.2,2486.7,4.02127]
[1724838117444,4.78091442,2487.2,2486.7,4.02127]
[1724838117945,4.02083,2487.1,2486.5,11.04317]
[1724838118154,8.04172,2487.1,2486.5,7.02158]
[1724838118319,4.02099,2487.0,2486.4,4.02187]
[1724838118650,4.02111,2486.9,2486.4,4.02187]
[1724838118854,4.02124,2486.8,2486.3,4.0332666]
[1724838119004,4.02147,2486.7,2486.3,0.0112366]
[1724838120360,2.469,2486.6,2486.3,0.0112366]
[1724838120647,4.02179,2486.5,2486.3,0.0112366]
[1724838120955,4.02187,2486.4,2486.3,0.0112366]
[1724838121156,8.04359,2486.5,2486.3,0.0112366]
[1724838121311,4.02179,2486.5,2486.3,0.0112366]
[1724838121511,6.72005831,2486.5,2486.3,0.0112366]
[1724838122149,6.72005831,2486.5,2486.4,0.12389129]
[1724838122451,6.72005831,2486.5,2486.3,0.0112366]
[1724838122833,4.02188,2486.4,2486.0,3.5048271]
[1724838123038,1.07419383,2486.3,2486.0,3.5048271]
[1724838123266,2.69826831,2486.5,2486.1,4.02235]
[1724838123872,6.71998831,2486.5,2486.1,4.02235]
[1724838124154,6.71998831,2486.5,2486.0,3.5048271]
[1724838124956,6.71998831,2486.5,2486.1,0.11976158]
[1724838125161,1.39224514,2486.4,2486.1,0.11976158]
[1724838125823,5.41413514,2486.4,2486.1,0.11976158]
[1724838126025,4.0222,2486.2,2486.1,0.11976158]
[1724838126319,5.41413514,2486.4,2485.9,3.0]
[1724838126320,4.02205,2486.3,2485.9,3.0]
[1724838126638,4.02205,2486.3,2486.1,0.11976158]
[1724838126833,4.02205,2486.3,2485.8,8.04551]
[1724838127039,4.02205,2486.3,2486.2,0.11976158]
[1724838127235,1.39224514,2486.4,2486.0,4.02249]
[1724838127535,19.78,2486.5,2486.1,4.1424848]
[1724838129348,19.78,2486.5,2486.2,4.0221]
[1724838129718,19.78,2486.5,2486.3,0.1202348]
[1724838129935,22.9608931,2486.6,2486.3,0.1202348]
[1724838131339,22.9608931,2486.6,2486.4,4.02187]
[1724838131528,19.78,2486.6,2486.5,4.02171]
[1724838131870,19.78,2486.6,2486.5,8.1636548]
[1724838132026,27.36963,2487.2,2486.9,4.02091]
[1724838132367,4.02042,2487.3,2486.8,4.02123]
[1724838132525,4.02042,2487.3,2486.9,4.02105]
[1724838132723,4.02042,2487.3,2486.7,4.02127]
[1724838132927,4.02066,2487.2,2487.0,0.12059532]
[1724838133126,6.8132042,2487.2,2486.7,4.02127]
[1724838133367,6.8132042,2487.2,2487.1,0.12012213]
[1724838133526,2.7925442,2487.2,2486.7,4.02127]
[1724838133726,6.8131742,2487.2,2486.7,4.02127]
[1724838133962,5.10410942,2487.1,2486.8,0.12012213]
[1724838134167,2.4356,2487.0,2486.6,4.02154]
[1724838134501,2.4356,2487.0,2486.9,0.12012213]
[1724838134659,2.4356,2487.0,2486.6,4.02154]
[1724838134842,2.4356,2487.0,2486.5,4.02161]
[1724838135042,6.45658,2487.0,2486.7,0.12012213]
[1724838135567,6.45658,2487.0,2486.8,0.12012213]
[1724838135763,6.45658,2487.0,2486.6,4.02155]
[1724838135764,2.4356,2487.0,2486.6,4.02155]
[1724838135956,2.4356,2487.0,2486.9,0.12012213]
[1724838136151,2.4356,2487.0,2486.5,8.04322]
[1724838136472,6.45654,2487.0,2486.9,0.12012213]
[1724838136771,5.84891036,2487.0,2486.5,4.0216]
[1724838136967,19.78,2487.2,2486.6,4.0215]
[1724838137261,23.80066,2487.2,2486.7,4.02129]
[1724838137467,26.180714,2487.2,2486.7,4.02129]
[1724838137841,26.180714,2487.2,2486.8,0.11761213]
[1724838138300,26.180714,2487.2,2486.7,4.02129]
[1724838138500,26.180714,2487.2,2486.9,0.11761213]
[1724838138674,4.0203,2487.4,2487.0,4.02083]
[1724838138675,19.78,2487.4,2487.0,4.02083]
[1724838138875,19.78,2487.4,2487.1,4.02072]
[1724838139391,19.78,2487.4,2487.2,4.13819213]
[1724838139754,19.78,2487.4,2487.2,0.11761213]
[1724838141365,23.79493556,2487.4,2487.1,4.02063]
[1724838141591,19.78,2487.4,2487.3,0.11757833]
[1724838141799,19.78,2487.4,2486.9,4.02094]
[1724838142034,19.78,2487.4,2487.3,0.11757833]
[1724838142156,19.78,2487.4,2487.1,4.02059]
[1724838142157,19.78,2487.4,2487.1,8.04125]
[1724838142360,19.78,2487.4,2487.3,0.11757833]
[1724838142575,19.78,2487.4,2487.1,4.02059]
[1724838142787,19.78,2487.4,2487.3,0.11757833]
[1724838142983,19.78,2487.4,2487.1,4.02059]
[1724838143185,19.78,2487.4,2487.3,0.11757833]
[1724838143406,19.78,2487.4,2487.1,4.02059]
[1724838143773,21.21844222,2487.4,2487.2,0.11757833]
[1724838144176,1.43844222,2487.4,2487.2,0.11757833]
[1724838144602,1.43844222,2487.4,2487.0,4.02089]
[1724838144762,1.43844222,2487.4,2487.3,0.11687987]
[1724838144965,1.43844222,2487.4,2487.1,4.02073]
[1724838145166,1.43844222,2487.4,2487.3,0.11687987]
[1724838145401,1.43844222,2487.4,2487.1,4.02073]
[1724838145578,1.43844222,2487.4,2487.3,0.11687987]
[1724838145791,1.43844222,2487.4,2487.2,4.02057]
[1724838145990,19.78,2487.5,2487.3,0.11687987]
[1724838146215,19.78,2487.5,2487.1,4.02065]
[1724838146423,22.393423,2487.5,2487.4,0.11687987]
[1724838146715,2.613423,2487.5,2487.1,4.02063]
[1724838146918,2.613423,2487.5,2487.4,0.11687987]
[1724838147077,2.613423,2487.5,2487.1,4.02063]
[1724838147273,2.613423,2487.5,2487.2,0.11687987]
[1724838148705,6.35423,2487.6,2487.2,0.11687987]
[1724838149791,10.37425,2487.6,2487.2,0.11687987]
[1724838150319,4.02012,2487.5,2487.2,0.11687987]
[1724838152324,4.02012,2487.5,2487.0,4.02089]
[1724838152531,4.02012,2487.5,2487.3,0.11687987]
[1724838152682,7.035555,2487.5,2487.2,3.0]
[1724838152883,7.035555,2487.5,2487.3,0.11687987]
[1724838153189,7.035555,2487.5,2487.2,3.0]
[1724838153388,7.035555,2487.5,2487.4,0.11687987]
[1724838153389,3.015435,2487.5,2487.4,0.11687987]
[1724838153628,4.02042,2487.3,2487.2,3.0]
[1724838154023,4.02042,2487.3,2487.2,3.11687987]
[1724838154429,8.04084,2487.3,2487.2,3.11687987]
[1724838156712,10.48724,2487.3,2487.2,3.11687987]
[1724838157123,6.46682,2487.3,2487.2,3.11687987]
[1724838157325,4.01988,2487.7,2487.2,7.13736987]
[1724838157504,4.02006,2487.6,2487.2,3.11687987]
[1724838158023,6.30346,2487.6,2487.2,3.11687987]
[1724838158426,4.02011,2487.5,2487.2,3.11687987]
[1724838159689,4.01995,2487.6,2487.2,3.11687987]
[1724838160828,4.46950201,2487.6,2487.2,3.11687987]
[1724838162105,4.46950201,2487.6,2487.2,7.13744987]
[1724838162326,0.44955201,2487.6,2487.2,7.13744987]
[1724838162527,4.931311,2487.7,2487.2,7.13737987]
[1724838162728,5.09463,2487.8,2487.6,4.01984]
[1724838163036,5.09463,2487.8,2487.5,4.01997]
[1724838163533,5.09463,2487.8,2487.6,0.11295006]
[1724838164042,4.55059244,2487.8,2487.6,0.11295006]
[1724838164327,4.55059244,2487.8,2487.6,4.13287006]
[1724838165152,4.55059244,2487.8,2487.6,0.11295006]
[1724838166559,4.55059244,2487.8,2487.4,4.02022]
[1724838166708,4.55059244,2487.8,2487.7,0.11295006]
[1724838166913,4.55059244,2487.8,2487.4,4.02022]
[1724838167139,4.55059244,2487.8,2487.5,0.11295006]
[1724838167336,4.55059244,2487.8,2487.5,4.13302006]
[1724838167544,4.55059244,2487.8,2487.6,4.01993]
[1724838167727,4.55059244,2487.8,2487.6,8.03978]
[1724838167925,26.25406,2488.2,2487.7,0.11295006]